fUSD/lending_fUSD_20240424
["ID","MTS","AMOUNT","RATE_DAILY","PERIOD"]
[323420317,1713975053722,-1275.06,0.00011232,2]
[323420319,1713975053732,-645.95,0.00011232,2]
[323420321,1713975053742,-192.2,0.00011232,2]
[323420323,1713975053754,-2282.7,0.00011232,2]
[323420331,1713975053832,-500.0,0.00011232,2]
[323420333,1713975053842,-500.0,0.00011232,2]
[323420335,1713975053851,-559.69,0.00011232,2]
[323420337,1713975053862,-610.07,0.00011232,2]
[323420339,1713975053873,-302.95,0.00011232,2]
[323420341,1713975053884,-252.3,0.00011232,2]
[323420343,1713975053894,-500.0,0.00011232,2]
[323420345,1713975053903,-500.0,0.00011232,2]
[323420347,1713975053913,-500.0,0.00011232,2]
[323420349,1713975053925,-500.0,0.00011232,2]
[323420351,1713975053935,-500.0,0.00011232,2]
[323420353,1713975053945,-556.22,0.00011232,2]
[323420355,1713975053956,-500.0,0.00011232,2]
[323420357,1713975053966,-1748.23,0.00011232,2]
[323420360,1713975053977,-583.23,0.00011232,2]
[323420362,1713975053986,-500.0,0.00011232,2]
[323420364,1713975053995,-500.0,0.00011232,2]
[323420365,1713975054006,-500.0,0.00011232,2]
[323420368,1713975054015,-500.0,0.00011232,2]
[323420370,1713975054024,-500.0,0.00011232,2]
[323420372,1713975054034,-500.0,0.00011232,2]
[323420373,1713975054043,-500.0,0.00011232,2]
[323420376,1713975054052,-459.52,0.00011232,2]
[323420378,1713975054062,-500.0,0.00011232,2]
[323420380,1713975054071,-590.89,0.00011232,2]
[323420382,1713975054081,-1382.13,0.00011232,2]
[323420384,1713975054091,-500.0,0.00011232,2]
[323420386,1713975054100,-500.0,0.00011232,2]
[323420388,1713975054110,-845.97,0.00011232,2]
[323420390,1713975054119,-500.0,0.00011232,2]
[323420392,1713975054129,-188.06,0.00011232,2]
[323420394,1713975054140,-500.0,0.00011232,2]
[323420396,1713975054149,-1860.36,0.00011232,2]
[323420398,1713975054159,-500.0,0.00011232,2]
[323420400,1713975054168,-334.53,0.00011232,2]
[323420402,1713975054177,-237.89,0.00011232,2]
[323420404,1713975054187,-1575.45,0.00011232,2]
[323420406,1713975054196,-500.0,0.00011232,2]
[323420408,1713975054205,-500.0,0.00011232,2]
[323420410,1713975054214,-3531.26,0.00011232,2]
[323420412,1713975054223,-500.0,0.00011232,2]
[323420414,1713975054232,-500.0,0.00011232,2]
[323420416,1713975054241,-500.0,0.00011232,2]
[323420418,1713975054251,-246.47,0.00011232,2]
[323420420,1713975054260,-512.09,0.00011232,2]
[323420422,1713975054270,-1092.44,0.00011232,2]
[323420424,1713975054280,-858.77,0.00011232,2]
[323420426,1713975054289,-500.0,0.00011232,2]
[323420428,1713975054298,-572.61,0.00011232,2]
[323420430,1713975054307,-617.78,0.00011232,2]
[323420432,1713975054317,-469.58,0.00011232,2]
[323420434,1713975054326,-764.69,0.00011232,2]
[323420436,1713975054335,-500.0,0.00011232,2]
[323420438,1713975054344,-180.02,0.00011232,2]
[323420440,1713975054354,-2554.02,0.00011232,2]
[323420442,1713975054364,-560.85,0.00011232,2]
[323420444,1713975054373,-617.37,0.00011232,2]
[323420446,1713975054383,-525.54,0.00011232,2]
[323420448,1713975054394,-4112.87,0.00011232,2]
[323420450,1713975054406,-500.0,0.00011232,2]
[323420452,1713975054416,-3153.58,0.00011232,2]
[323420454,1713975054428,-500.0,0.00011232,2]
[323420456,1713975054440,-500.0,0.00011232,2]
[323420458,1713975054453,-570.08,0.00011232,2]
[323420460,1713975054464,-500.0,0.00011232,2]
[323420462,1713975054474,-508.88,0.00011232,2]
[323420465,1713975054488,-2477.2,0.00011232,2]
[323420466,1713975054499,-500.0,0.00011232,2]
[323420468,1713975054517,-2201.12,0.00011232,2]
[323420471,1713975054529,-500.0,0.00011232,2]
[323420473,1713975054541,-500.0,0.00011232,2]
[323420475,1713975054553,-197.38,0.00011232,2]
[323420476,1713975054564,-5992.35,0.00011232,2]
[323420478,1713975054575,-2026.18,0.00011232,2]
[323420481,1713975054586,-500.0,0.00011232,2]
[323420483,1713975054597,-1668.13,0.00011232,2]
[323420485,1713975054608,-1058.96,0.00011232,2]
[323420487,1713975054619,-563.02,0.00011232,2]
[323420489,1713975054631,-762.56,0.00011232,2]
[323420491,1713975054641,-500.0,0.00011232,2]
[323420493,1713975054651,-500.0,0.00011232,2]
[323420495,1713975054661,-332.48302891,0.00011232,2]
[323420497,1713975054671,-746.71,0.00011232,2]
[323420499,1713975054682,-2247.38,0.00011232,2]
[323420501,1713975054694,-921.04,0.00011232,2]
[323420503,1713975054704,-500.0,0.00011232,2]
[323420504,1713975054715,-500.0,0.00011232,2]
[323420507,1713975054725,-500.0,0.00011232,2]
[323420508,1713975054736,-1673.54,0.00011232,2]
[323420511,1713975054746,-3685.73,0.00011232,2]
[323420513,1713975054765,-178.49,0.00011232,2]
[323420515,1713975054775,-2811.27,0.00011232,2]
[323420517,1713975054785,-656.32,0.00011232,2]
[323420518,1713975054796,-509.27,0.00011232,2]
[323420520,1713975054806,-500.0,0.00011232,2]
[323420522,1713975054816,-2056.27,0.00011232,2]
[323420524,1713975054826,-2671.74,0.00011232,2]
[323420526,1713975054837,-5513.74,0.00011232,2]
[323420528,1713975054847,-1114.07,0.00011232,2]
[323420531,1713975054857,-1154.23,0.00011232,2]
[323420533,1713975054868,-1593.53,0.00011232,2]
[323420535,1713975054878,-519.67,0.00011232,2]
[323420537,1713975054887,-500.0,0.00011232,2]
[323420539,1713975054899,-500.0,0.00011232,2]
[323420541,1713975054908,-4004.39,0.00011232,2]
[323420543,1713975054918,-1317.52,0.00011232,2]
[323420545,1713975054927,-500.0,0.00011232,2]
[323420547,1713975054936,-500.0,0.00011232,2]
[323420549,1713975054945,-500.0,0.00011232,2]
[323420551,1713975054955,-2096.21,0.00011232,2]
[323420553,1713975054964,-500.0,0.00011232,2]
[323420555,1713975054973,-1499.85,0.00011232,2]
[323420557,1713975054983,-7739.09,0.00011232,2]
[323420559,1713975054992,-6489.48,0.00011232,2]
[323420561,1713975055006,-340.55468915,0.00011232,2]
[323420563,1713975055015,-500.0,0.00011232,2]
[323420565,1713975055025,-500.0,0.00011232,2]
[323420599,1713975055327,-6709.5,0.00011232,2]
[323420602,1713975055339,-1241.14,0.00011232,2]
[323420604,1713975055348,-7800.58,0.00011232,2]
[323420606,1713975055358,-1638.25,0.00011232,2]
[323420608,1713975055368,-9800.45,0.00011232,2]
[323420610,1713975055377,-500.0,0.00011232,2]
[323420612,1713975055386,-500.0,0.00011232,2]
[323420614,1713975055395,-330.45,0.00011232,2]
[323420616,1713975055405,-540.09,0.00011232,2]
[323420618,1713975055414,-588.67,0.00011232,2]
[323420620,1713975055424,-567.21,0.00011232,2]
[323420622,1713975055438,-853.07,0.00011232,2]
[323420624,1713975055447,-2751.18,0.00011232,2]
[323420626,1713975055456,-1150.81,0.00011232,2]
[323420628,1713975055465,-3976.85,0.00011232,2]
[323420631,1713975055475,-500.0,0.00011232,2]
[323420632,1713975055487,-1213.77,0.00011232,2]
[323420635,1713975055496,-500.0,0.00011232,2]
[323420637,1713975055513,-580.88,0.00011232,2]
[323420639,1713975055522,-942.8,0.00011232,2]
[323420641,1713975055531,-1310.32,0.00011232,2]
[323420642,1713975055541,-2953.26,0.00011232,2]
[323420643,1713975055550,-3857.38,0.00011232,2]
[323420644,1713975055560,-3543.23,0.00011232,2]
[323420645,1713975055568,-500.0,0.00011232,2]
[323420646,1713975055577,-1615.9,0.00011232,2]
[323420647,1713975055586,-1990.18,0.00011232,2]
[323420648,1713975055597,-1255.15,0.00011232,2]
[323420649,1713975055607,-1736.9,0.00011232,2]
[323420650,1713975055616,-500.0,0.00011232,2]
[323420651,1713975055626,-4246.55,0.00011232,2]
[323420652,1713975055636,-500.0,0.00011232,2]
[323420653,1713975055647,-1209.48,0.00011232,2]
[323420656,1713975055657,-500.0,0.00011232,2]
[323420658,1713975055667,-538.27,0.00011232,2]
[323420660,1713975055678,-500.0,0.00011232,2]
[323420662,1713975055688,-500.0,0.00011232,2]
[323420664,1713975055698,-500.0,0.00011232,2]
[323420666,1713975055709,-668.98,0.00011232,2]
[323420667,1713975055721,-5498.77,0.00011232,2]
[323420670,1713975055731,-3053.03,0.00011232,2]
[323420671,1713975055742,-5912.38,0.00011232,2]
[323420674,1713975055754,-500.0,0.00011232,2]
[323420676,1713975055766,-222.8,0.00011232,2]
[323420678,1713975055776,-1757.48,0.00011232,2]
[323420680,1713975055786,-2763.13,0.00011232,2]
[323420681,1713975055798,-500.0,0.00011232,2]
[323420684,1713975055809,-3280.11,0.00011232,2]
[323420685,1713975055820,-1487.58,0.00011232,2]
[323420688,1713975055830,-2304.0,0.00011232,2]
[323420690,1713975055842,-1424.26,0.00011232,2]
[323420692,1713975055852,-606.87,0.00011232,2]
[323420694,1713975055864,-5700.41,0.00011232,2]
[323420696,1713975055876,-500.0,0.00011232,2]
[323420697,1713975055889,-1030.88,0.00011232,2]
[323420699,1713975055900,-232.96,0.00011232,2]
[323420701,1713975055911,-992.61,0.00011232,2]
[323420703,1713975055921,-11641.85,0.00011232,2]
[323420705,1713975055932,-1434.76,0.00011232,2]
[323420707,1713975055942,-500.0,0.00011232,2]
[323420710,1713975055952,-500.0,0.00011232,2]
[323420712,1713975055962,-3505.18,0.00011232,2]
[323420714,1713975055972,-1930.1,0.00011232,2]
[323420716,1713975055981,-500.0,0.00011232,2]
[323420717,1713975055991,-1970.27,0.00011232,2]
[323420718,1713975056004,-500.0,0.00011232,2]
[323420719,1713975056014,-562.91,0.00011232,2]
[323420720,1713975056024,-2517.06,0.00011232,2]
[323420721,1713975056034,-500.0,0.00011232,2]
[323420722,1713975056045,-500.0,0.00011232,2]
[323420723,1713975056055,-500.0,0.00011232,2]
[323420724,1713975056064,-500.0,0.00011232,2]
[323420725,1713975056073,-500.0,0.00011232,2]
[323420726,1713975056082,-4317.51,0.00011232,2]
[323420727,1713975056092,-1075.09,0.00011232,2]
[323420728,1713975056102,-1035.94,0.00011232,2]
[323420729,1713975056112,-738.58,0.00011232,2]
[323420730,1713975056122,-2304.09,0.00011232,2]
[323420731,1713975056132,-500.0,0.00011232,2]
[323420732,1713975056142,-500.0,0.00011232,2]
[323420733,1713975056151,-2769.48,0.00011232,2]
[323420734,1713975056161,-500.0,0.00011232,2]
[323420735,1713975056169,-518.82,0.00011232,2]
[323420736,1713975056179,-2951.97,0.00011232,2]
[323420737,1713975056189,-791.3,0.00011232,2]
[323420738,1713975056199,-2917.19,0.00011232,2]
[323420739,1713975056209,-1102.28,0.00011232,2]
[323420740,1713975056220,-500.0,0.00011232,2]
[323420741,1713975056230,-1539.12,0.00011232,2]
[323420742,1713975056240,-642.43,0.00011232,2]
[323420743,1713975056255,-2323.89,0.00011232,2]
[323420744,1713975056267,-1532.48,0.00011232,2]
[323420745,1713975056276,-258.25,0.00011232,2]
[323420746,1713975056286,-500.0,0.00011232,2]
[323420747,1713975056296,-721.38,0.00011232,2]
[323420748,1713975056305,-984.1,0.00011232,2]
[323420749,1713975056315,-5450.31,0.00011232,2]
[323420750,1713975056324,-500.0,0.00011232,2]
[323420752,1713975056333,-747.94,0.00011232,2]
[323420753,1713975056342,-500.0,0.00011232,2]
[323420755,1713975056352,-943.66,0.00011232,2]
[323420757,1713975056361,-500.0,0.00011232,2]
[323420758,1713975056371,-1962.94,0.00011232,2]
[323420759,1713975056380,-552.6,0.00011232,2]
[323420760,1713975056390,-3999.16,0.00011232,2]
[323420761,1713975056399,-500.0,0.00011232,2]
[323420762,1713975056410,-813.61,0.00011232,2]
[323420763,1713975056420,-5516.63,0.00011232,2]
[323420764,1713975056431,-500.0,0.00011232,2]
[323420765,1713975056442,-500.0,0.00011232,2]
[323420766,1713975056452,-1541.63,0.00011232,2]
[323420767,1713975056465,-2457.2,0.00011232,2]
[323420768,1713975056475,-683.96,0.00011232,2]
[323420769,1713975056485,-500.0,0.00011232,2]
[323420770,1713975056495,-2290.38,0.00011232,2]
[323420771,1713975056508,-3942.88,0.00011232,2]
[323420772,1713975056518,-500.0,0.00011232,2]
[323420773,1713975056528,-2482.14,0.00011232,2]
[323420774,1713975056539,-3891.45,0.00011232,2]
[323420775,1713975056549,-619.81,0.00011232,2]
[323420776,1713975056558,-500.0,0.00011232,2]
[323420777,1713975056568,-500.0,0.00011232,2]
[323420778,1713975056578,-284.79686979,0.00011232,2]
[323420779,1713975056588,-500.0,0.00011232,2]
[323420780,1713975056598,-1881.43,0.00011232,2]
[323420781,1713975056607,-500.0,0.00011232,2]
[323420782,1713975056617,-2647.42,0.00011232,2]
[323420783,1713975056627,-808.74,0.00011232,2]
[323420784,1713975056637,-5486.13,0.00011232,2]
[323420785,1713975056646,-500.0,0.00011232,2]
[323420786,1713975056655,-544.73,0.00011232,2]
[323420787,1713975056665,-500.0,0.00011232,2]
[323420788,1713975056674,-7550.02,0.00011232,2]
[323420789,1713975056684,-1639.04,0.00011232,2]
[323420790,1713975056694,-1479.48,0.00011232,2]
[323420791,1713975056703,-500.0,0.00011232,2]
[323420792,1713975056713,-1225.74,0.00011232,2]
[323420793,1713975056722,-2521.41,0.00011232,2]
[323420795,1713975056731,-500.0,0.00011232,2]
[323420796,1713975056740,-500.0,0.00011232,2]
[323420798,1713975056754,-541.27,0.00011232,2]
[323420800,1713975056763,-2002.08,0.00011232,2]
[323420802,1713975056773,-543.35,0.00011232,2]
[323420804,1713975056782,-500.0,0.00011232,2]
[323420806,1713975056791,-8910.51,0.00011232,2]
[323420808,1713975056800,-500.0,0.00011232,2]
[323420810,1713975056810,-500.0,0.00011232,2]
[323420812,1713975056819,-500.0,0.00011232,2]
[323420815,1713975056829,-500.0,0.00011232,2]
[323420817,1713975056838,-2482.63,0.00011232,2]
[323420818,1713975056848,-6375.41,0.00011232,2]
[323420821,1713975056858,-1137.13,0.00011232,2]
[323420822,1713975056867,-500.0,0.00011232,2]
[323420824,1713975056876,-333.72629277,0.00011406,2]
[323420827,1713975056886,-260.9089,0.00011406,2]
[323420829,1713975056896,-500.0,0.00011505,2]
[323420831,1713975056905,-215.07,0.00011505,2]
[323420832,1713975056915,-392.66,0.00011505,2]
[323420835,1713975056928,-500.0,0.00011505,2]
[323420837,1713975056938,-259.33,0.00011505,2]
[323420839,1713975056947,-500.0,0.00011505,2]
[323420841,1713975056957,-500.0,0.00011505,2]
[323420842,1713975056966,-500.0,0.00011505,2]
[323420843,1713975056976,-500.0,0.00011505,2]
[323420844,1713975056986,-354.87,0.00011505,2]
[323420845,1713975056995,-248.77,0.00011505,2]
[323420846,1713975057009,-500.0,0.00011505,2]
[323420847,1713975057019,-640.69,0.00011505,2]
[323420848,1713975057029,-500.0,0.00011505,2]
[323420849,1713975057038,-500.0,0.00011505,2]
[323420850,1713975057048,-524.55,0.00011505,2]
[323420852,1713975057059,-271.85,0.00011505,2]
[323420854,1713975057068,-371.84,0.00011505,2]
[323420856,1713975057077,-500.0,0.00011505,2]
[323420858,1713975057087,-346.42,0.00011505,2]
[323420860,1713975057097,-238.0,0.00011505,2]
[323420862,1713975057107,-357.62,0.00011505,2]
[323420863,1713975057116,-411.49356513,0.00011505,2]
[323420864,1713975057126,-497.82,0.00011505,2]
[323420865,1713975057136,-500.0,0.00011505,2]
[323420866,1713975057146,-500.0,0.00011505,2]
[323420867,1713975057156,-386.1,0.00011505,2]
[323420868,1713975057165,-317.01,0.00011505,2]
[323420869,1713975057174,-500.0,0.00011505,2]
[323420870,1713975057184,-500.0,0.00011505,2]
[323420871,1713975057194,-167.83,0.00011505,2]
[323420872,1713975057205,-412.78,0.00011505,2]
[323420873,1713975057215,-500.0,0.00011505,2]
[323420874,1713975057225,-288.42,0.00011506,2]
[323420875,1713975057235,-500.0,0.00011506,2]
[323420876,1713975057244,-522.44,0.00011506,2]
[323420877,1713975057257,-301.08,0.00011506,2]
[323420878,1713975057266,-311.22,0.00011506,2]
[323420879,1713975057275,-500.0,0.00011506,2]
[323420880,1713975057284,-479.45,0.00011506,2]
[323420881,1713975057293,-339.2,0.00011506,2]
[323420882,1713975057303,-554.34,0.00011506,2]
[323420883,1713975057313,-445.77864655,0.00011506,2]
[323420884,1713975057322,-500.0,0.00011506,2]
[323420885,1713975057332,-578.19,0.00011506,2]
[323420886,1713975057342,-500.0,0.00011506,2]
[323420887,1713975057352,-500.0,0.00011506,2]
[323420888,1713975057362,-500.0,0.00011506,2]
[323420889,1713975057372,-500.0,0.00011506,2]
[323420890,1713975057382,-500.0,0.00011506,2]
[323420891,1713975057392,-701.17,0.00011506,2]
[323420892,1713975057401,-500.0,0.00011506,2]
[323420893,1713975057411,-592.5,0.00011506,2]
[323420894,1713975057421,-586.54,0.00011506,2]
[323420895,1713975057432,-500.0,0.00011506,2]
[323420896,1713975057445,-500.0,0.00011506,2]
[323420897,1713975057455,-500.0,0.00011506,2]
[323420898,1713975057464,-500.0,0.00011506,2]
[323420899,1713975057474,-500.0,0.00011506,2]
[323420900,1713975057485,-261.16274829,0.00011506,2]
[323420901,1713975057495,-500.0,0.00011506,2]
[323420902,1713975057507,-500.0,0.00011506,2]
[323420903,1713975057517,-500.0,0.00011506,2]
[323420904,1713975057528,-500.0,0.00011506,2]
[323420905,1713975057538,-500.0,0.00011506,2]
[323420906,1713975057547,-383.68,0.00011506,2]
[323420907,1713975057557,-501.13,0.00011506,2]
[323420908,1713975057566,-265.48,0.00011506,2]
[323420909,1713975057576,-1093.68,0.00011506,2]
[323420910,1713975057586,-500.0,0.00011506,2]
[323420911,1713975057596,-500.0,0.00011506,2]
[323420912,1713975057605,-661.58,0.00011506,2]
[323420913,1713975057615,-500.0,0.00011506,2]
[323420914,1713975057624,-500.0,0.00011506,2]
[323420915,1713975057634,-500.0,0.00011506,2]
[323420916,1713975057644,-500.0,0.00011506,2]
[323420917,1713975057653,-151.69,0.00011506,2]
[323420918,1713975057663,-500.0,0.00011506,2]
[323420919,1713975057674,-500.0,0.00011506,2]
[323420920,1713975057683,-1054.9,0.00011506,2]
[323420921,1713975057693,-553.61,0.00011506,2]
[323420922,1713975057705,-500.0,0.00011506,2]
[323420923,1713975057715,-500.0,0.00011506,2]
[323420924,1713975057724,-677.11,0.00011506,2]
[323420925,1713975057734,-500.0,0.00011506,2]
[323420926,1713975057744,-500.0,0.00011506,2]
[323420927,1713975057754,-2345.59,0.00011506,2]
[323420928,1713975057765,-500.0,0.00011506,2]
[323420929,1713975057775,-500.0,0.00011506,2]
[323420930,1713975057784,-500.0,0.00011506,2]
[323420931,1713975057794,-500.0,0.00011506,2]
[323420932,1713975057803,-651.05,0.00011506,2]
[323420933,1713975057812,-500.0,0.00011506,2]
[323420934,1713975057822,-500.0,0.00011506,2]
[323420935,1713975057831,-500.0,0.00011506,2]
[323420936,1713975057840,-649.9,0.00011506,2]
[323420937,1713975057850,-500.0,0.00011506,2]
[323420938,1713975057859,-361.93,0.00011506,2]
[323420939,1713975057869,-713.41,0.00011506,2]
[323420940,1713975057878,-637.45,0.00011506,2]
[323420941,1713975057887,-500.0,0.00011506,2]
[323420942,1713975057896,-337.44,0.00011506,2]
[323420943,1713975057906,-500.0,0.00011506,2]
[323420944,1713975057916,-947.39,0.00011506,2]
[323420945,1713975057925,-523.75,0.00011506,2]
[323420946,1713975057935,-500.0,0.00011506,2]
[323420947,1713975057945,-1548.25,0.00011506,2]
[323420948,1713975057955,-500.0,0.00011506,2]
[323420949,1713975057965,-635.97,0.00011506,2]
[323420950,1713975057974,-538.51,0.00011506,2]
[323420951,1713975057983,-500.0,0.00011506,2]
[323420952,1713975057992,-601.98,0.00011506,2]
[323420953,1713975058003,-519.67,0.00011506,2]
[323420954,1713975058012,-500.0,0.00011506,2]
[323420955,1713975058022,-1546.08,0.00011506,2]
[323420956,1713975058032,-1643.74,0.00011506,2]
[323420957,1713975058041,-500.0,0.00011506,2]
[323420958,1713975058050,-1316.65,0.00011506,2]
[323420959,1713975058059,-500.0,0.00011506,2]
[323420960,1713975058068,-476.05,0.00011506,2]
[323420961,1713975058079,-500.0,0.00011506,2]
[323420962,1713975058089,-500.0,0.00011506,2]
[323420963,1713975058098,-500.0,0.00011506,2]
[323420964,1713975058108,-500.0,0.00011506,2]
[323420965,1713975058118,-500.0,0.00011506,2]
[323420966,1713975058128,-500.0,0.00011506,2]
[323420967,1713975058137,-311.63,0.00011506,2]
[323420968,1713975058146,-1632.07,0.00011506,2]
[323420969,1713975058156,-500.0,0.00011506,2]
[323420970,1713975058165,-599.31,0.00011506,2]
[323420971,1713975058174,-500.0,0.00011506,2]
[323420972,1713975058183,-500.0,0.00011506,2]
[323420973,1713975058193,-500.0,0.00011506,2]
[323420974,1713975058203,-500.0,0.00011506,2]
[323420975,1713975058212,-500.0,0.00011506,2]
[323420976,1713975058222,-1204.79,0.00011506,2]
[323420977,1713975058232,-328.82,0.00011506,2]
[323420978,1713975058241,-500.0,0.00011506,2]
[323420979,1713975058252,-500.0,0.00011506,2]
[323420980,1713975058261,-1337.04,0.00011506,2]
[323420981,1713975058270,-500.0,0.00011506,2]
[323420982,1713975058279,-552.71,0.00011506,2]
[323420983,1713975058288,-500.0,0.00011506,2]
[323420984,1713975058298,-1277.94,0.00011506,2]
[323420985,1713975058311,-646.05,0.00011506,2]
[323420986,1713975058323,-1449.27,0.00011506,2]
[323420987,1713975058337,-804.1,0.00011506,2]
[323420988,1713975058349,-514.74,0.00011506,2]
[323420989,1713975058360,-1275.06,0.00011506,2]
[323420990,1713975058373,-2282.7,0.00011506,2]
[323420991,1713975058385,-271.53,0.00011506,2]
[323420992,1713975058405,-500.0,0.00011506,2]
[323420993,1713975058418,-500.0,0.00011506,2]
[323420994,1713975058431,-221.49,0.00011506,2]
[323420995,1713975058444,-500.0,0.00011506,2]
[323420996,1713975058459,-500.0,0.00011506,2]
[323420997,1713975058471,-500.0,0.00011506,2]
[323420998,1713975058483,-556.22,0.00011506,2]
[323420999,1713975058494,-500.0,0.00011506,2]
[323421000,1713975058507,-1748.23,0.00011506,2]
[323421001,1713975058524,-583.23,0.00011506,2]
[323421002,1713975058536,-500.0,0.00011506,2]
[323421003,1713975058548,-298.16,0.00011506,2]
[323421004,1713975058560,-500.0,0.00011506,2]
[323421005,1713975058573,-500.0,0.00011506,2]
[323421006,1713975058585,-500.0,0.00011506,2]
[323421007,1713975058598,-500.0,0.00011506,2]
[323421008,1713975058610,-500.0,0.00011506,2]
[323421009,1713975058622,-500.0,0.00011506,2]
[323421010,1713975058635,-1382.13,0.00011506,2]
[323421011,1713975058646,-500.0,0.00011506,2]
[323421012,1713975058661,-845.97,0.00011506,2]
[323421013,1713975058673,-400.75,0.00011506,2]
[323421014,1713975058686,-170.07,0.00011506,2]
[323421015,1713975058697,-1860.36,0.00011506,2]
[323421016,1713975058710,-500.0,0.00011506,2]
[323421017,1713975058721,-500.0,0.00011506,2]
[323421018,1713975058734,-1575.45,0.00011506,2]
[323421019,1713975058747,-500.0,0.00011506,2]
[323421020,1713975058762,-3531.26,0.00011506,2]
[323421021,1713975058775,-500.0,0.00011506,2]
[323421022,1713975058788,-252.84,0.00011506,2]
[323421023,1713975058799,-500.0,0.00011506,2]
[323421024,1713975058809,-512.09,0.00011506,2]
[323421025,1713975058820,-1092.44,0.00011506,2]
[323421026,1713975058833,-858.77,0.00011506,2]
[323421027,1713975058844,-500.0,0.00011506,2]
[323421028,1713975058856,-572.61,0.00011506,2]
[323421029,1713975058867,-617.78,0.00011506,2]
[323421030,1713975058878,-764.69,0.00011506,2]
[323421031,1713975058890,-500.0,0.00011506,2]
[323421032,1713975058903,-2554.02,0.00011506,2]
[323421033,1713975058913,-560.85,0.00011506,2]
[323421034,1713975058923,-617.37,0.00011506,2]
[323421035,1713975058933,-525.54,0.00011506,2]
[323421036,1713975058944,-4112.87,0.00011506,2]
[323421037,1713975058956,-500.0,0.00011506,2]
[323421038,1713975058967,-3153.58,0.00011506,2]
[323421039,1713975058979,-500.0,0.00011506,2]
[323421040,1713975058989,-567.07380414,0.00011506,2]
[323421041,1713975058999,-500.0,0.00011506,2]
[323421042,1713975059012,-570.08,0.00011506,2]
[323421043,1713975059023,-508.88,0.00011506,2]
[323421044,1713975059035,-2477.2,0.00011506,2]
[323421045,1713975059046,-500.0,0.00011506,2]
[323421046,1713975059057,-2201.12,0.00011506,2]
[323421047,1713975059068,-263.88,0.00011506,2]
[323421048,1713975059079,-500.0,0.00011506,2]
[323421049,1713975059090,-5992.35,0.00011506,2]
[323421050,1713975059101,-2026.18,0.00011506,2]
[323421051,1713975059113,-500.0,0.00011506,2]
[323421052,1713975059124,-1668.13,0.00011506,2]
[323421053,1713975059135,-1058.96,0.00011506,2]
[323421054,1713975059146,-762.56,0.00011506,2]
[323421055,1713975059157,-500.0,0.00011506,2]
[323421056,1713975059169,-500.0,0.00011506,2]
[323421057,1713975059180,-746.71,0.00011506,2]
[323421058,1713975059191,-2247.38,0.00011506,2]
[323421059,1713975059202,-921.04,0.00011506,2]
[323421060,1713975059213,-500.0,0.00011506,2]
[323421061,1713975059224,-500.0,0.00011506,2]
[323421062,1713975059236,-526.3302765,0.00011506,2]
[323421063,1713975059247,-1673.54,0.00011506,2]
[323421064,1713975059259,-3685.73,0.00011506,2]